Cogmind - Beta 13 @@@ ROGUE MODE // 2024.06.07 @ 16:23:28 Player: TinyBoulder Result: Destroyed by Light Fission Core chain reaction Performance ------------- Evolutions (1) 500 Regions Visited (5) 1000 Robots Destroyed (30) 150 Value Destroyed (547) 547 Prototype IDs (27) 540 Alien Tech Used (0) 0 Bonus (374) 374 TOTAL SCORE: 3111 Bonus ------- Pacifist 200 High Alert Combat Kills 6 Follower Combat Kills 266 Aligned with FarCom 300 Friendly Fire -398 Cogmind --------- Core Integrity 0/400 Matter 227/300 Energy 99/100 System Corruption 0% Temperature Cool (12) Movement Core (50) Location -9/Exiles Parts ------- > --- POWER (1) -------- (None) > --- PROPULSION (2) --- (None) > --- UTILITY (3) ------ (None) > --- WEAPON (3) ------- (None) > --- INVENTORY (5) ---- EX Chip 1 EX Chip 1 EX Chip 1 Light Assault Rifle Makeshift Axe Peak State ------------ > --- POWER ------------ Deuterium Engine > --- PROPULSION ------- Light Treads Light Treads > --- UTILITY ---------- High-capacity Storage Unit Superbattery Targeting Computer > --- WEAPON ----------- Heavy Assault Rifle Heavy Assault Rifle Mini Grenade Launcher > --- INVENTORY -------- Deuterium Engine Deuterium Engine Light Treads Light Treads Light Treads Light Treads Light Treads Light Treads Compact Wheel Medium Matter Pod Medium Armor Plating Assault Rifle Light Assault Rifle Light Assault Rifle Light Assault Rifle Heavy Assault Rifle Mining Laser Makeshift Axe Shock Trap Shock Trap [Rating: 25] Favorites ----------- Power Deuterium Engine Engine Deuterium Engine Propulsion Light Treads Treads Light Treads Wheel Compact Wheel Utility Targeting Computer Device Structural Scanner Storage High-capacity Storage Unit Processor Targeting Computer Protection Improved Light Armor Plating Weapon Heavy Assault Rifle Ballistic Gun Heavy Assault Rifle Launcher Rocket Launcher Build | -11 -10 -10 -9 -9 -9 ------- Run | Yrd Mat Min Mat Min Exi Slots Evolved 2 | . . . 2 . . Power . | . . . . . . Propulsion . | . . . . . . Utility 1 | . . . 1 . . Weapon 1 | . . . 1 . . Parts Attached 36 | 6 2 1 17 3 7 Power 2 | 1 . . 1 . . Engine 2 | 1 . . 1 . . Core . | . . . . . . Reactor . | . . . . . . Propulsion 5 | 2 . . . . 3 Treads 4 | 2 . . . . 2 Leg . | . . . . . . Wheel 1 | . . . . . 1 Hover . | . . . . . . Flight . | . . . . . . Utility 11 | 1 1 . 5 1 3 Device 1 | . 1 . . . . Storage 5 | 1 . . 2 . 2 Processor 2 | . . . 2 . . Hackware . | . . . . . . Protection 3 | . . . 1 1 1 Artifact . | . . . . . . Weapon 18 | 2 1 1 11 2 1 Energy Gun . | . . . . . . Energy Cannon . | . . . . . . Ballistic Gun 12 | 2 1 . 8 . 1 Ballistic Cannon . | . . . . . . Launcher 6 | . . 1 3 2 . Special Weapon . | . . . . . . Impact Weapon . | . . . . . . Slashing Weapon . | . . . . . . Piercing Weapon . | . . . . . . Special Melee Weapon . | . . . . . . Unidentified Prototypes . | . . . . . . Parts Lost 11 | . . . . 1 10 Power 1 | . . . . . 1 Propulsion 4 | . . . . . 4 Utility 2 | . . . . 1 1 Weapon 4 | . . . . . 4 Highest Loss Streak 5 | . . . . 1 5 To Critical Strikes 5 | . . . . . 5 Average Slot Usage (%) 97 | . 96 100 98 99 92 Engine 11 | . 14 14 11 11 9 Treads 22 | . 28 28 22 22 20 Device 4 | . 11 14 4 . . Storage 11 | . 14 14 11 11 11 Processor 9 | . . . 12 11 10 Protection 6 | . . . 3 10 9 Ballistic Gun 23 | . 28 14 30 22 19 Launcher 7 | . . 13 2 10 8 Naked Turns 1 | . . . . . 1 Heaviest Build 66 | 12 14 17 65 66 61 Greatest Support 40 | 40 40 40 40 40 40 Greatest Overweight (x) 3 | . . . 1 1 3 Average Overweight (x) . | . . . . 1 1 Largest Inventory Capacity 20 | 8 8 8 20 20 20 Average Capacity 16 | 6 8 8 17 20 19 Most Carried 20 | 3 6 8 20 20 20 Average Carried 14 | 1 3 7 12 19 18 Final Capacity 20 | 8 8 8 20 20 5 Final Carried 20 | 3 6 8 19 20 5 Class Distribution -------------------- 69% | Gunner 27% | Mutant Dominant Class ---------------- Mutant | -10/Materials Mutant | -10/Mines Gunner | -9/Materials Gunner | -9/Mines Gunner | -9/Exiles Resources | -11 -10 -10 -9 -9 -9 ----------- Run | Yrd Mat Min Mat Min Exi Matter Collected 977 | 205 63 122 346 180 61 Remotely . | . . . . . . Salvage Created 561 | . . . 478 77 6 Parts 51 | . . . 42 9 . Haulers Intercepted 1 | . . . 1 . . Recyclers Shooed . | . . . . . . Parts Field Recycled . | . . . . . . Retrieved Matter . | . . . . . . Parts Self-Destructed . | . . . . . . Prevented . | . . . . . . Kills | -11 -10 -10 -9 -9 -9 ------- Run | Yrd Mat Min Mat Min Exi Combat Hostiles Destroyed 39 | . . . 16 18 5 Guns 9 | . . . 4 3 2 AOE 30 | . . . 12 15 3 Classes Destroyed 9 | . . . 8 1 . Worker 4 | . . . 4 . . Tunneler 1 | . . . 1 . . Hauler 1 | . . . 1 . . Mechanic 1 | . . . 1 . . Watcher 1 | . . . 1 . . Swarmer 13 | . . . 7 6 . Grunt 6 | . . . 6 . . Sentry 3 | . . . 3 . . Assembled 18 | . . . . 12 6 Best Kill Streak 15 | . . . 12 15 5 Combat Bots Only 15 | . . . 7 15 5 Max Kills in Single Turn 5 | . . . 5 3 2 Gunslinging 1 | . . . . 1 . Exploded 3 | . . . 3 3 2 Melee . | . . . . . . Uniques/NPCs Destroyed . | . . . . . . Combat | -11 -10 -10 -9 -9 -9 -------- Run | Yrd Mat Min Mat Min Exi Hostile Shots Fired 156 | . . . 49 33 74 Missed 43 | . . . 12 10 21 Damage Taken 1915 | . . . 544 349 1022 Core 437 | . . . 141 47 249 Absorbed by Shields . | . . . . . . Regen/Repaired (Parts) 58 | . . . 58 . . Core Remaining (%) 100 | 100 . 100 . . . Volleys Fired 52 | . . . 30 14 8 Largest 3 | . . . 3 2 3 Hottest 73 | . . . 73 46 69 Shots Fired 108 | . . . 73 17 18 Gun 84 | . . . 63 6 15 Cannon . | . . . . . . Launcher 24 | . . . 10 11 3 Special . | . . . . . . Kinetic 84 | . . . 63 6 15 Thermal . | . . . . . . Explosive 24 | . . . 10 11 3 Electromagnetic . | . . . . . . Robot Hit Streak 29 | . . . 29 2 6 Robot Miss Streak 4 | . . . 4 2 1 Penetration Max . | . . . . . . Secondary Targets 2 | . . . . 1 1 Max Gunslinging Chain 1 | . . . . 1 1 Shots Hit Robots 73 | . . . 56 4 13 Core Hits 77 | . . . 36 27 14 Critical Kills . | . . . . . . Critical Parts Destroyed . | . . . . . . Critical Strikes . | . . . . . . Melee Attacks . | . . . . . . Impact . | . . . . . . Slashing . | . . . . . . Piercing . | . . . . . . Sneak Attacks . | . . . . . . Combat Hostiles . | . . . . . . Follow-up Attacks . | . . . . . . Damage Inflicted 3148 | . . . 1628 967 553 Guns 734 | . . . 547 43 144 Cannons . | . . . . . . Explosions 2414 | . . . 1081 924 409 Melee . | . . . . . . Ramming . | . . . . . . Kinetic 734 | . . . 547 43 144 Thermal . | . . . . . . Explosive 2414 | . . . 1081 924 409 Electromagnetic . | . . . . . . Impact . | . . . . . . Slashing . | . . . . . . Piercing . | . . . . . . Highest Corruption . | . . . . . . Average Corruption . | . . . . . . Corruption Purged . | . . . . . . Corruption Blocked . | . . . . . . Overload Shots . | . . . . . . Overflow Damage 68 | . . . 34 18 16 Projectiles . | . . . . . . Explosions 68 | . . . 34 18 16 Melee . | . . . . . . Knockbacks . | . . . . . . Impact . | . . . . . . Kinetic . | . . . . . . Secondary . | . . . . . . Self-Inflicted Damage 92 | . . . 15 77 . Shots 4 | . . . 1 3 . Rammed . | . . . . . . Targets Rammed . | . . . . . . Kicked . | . . . . . . Crushed . | . . . . . . Highest Temperature 63 | . . . 63 14 36 Average Temperature 21 | . . . 23 10 16 Received Heat Transfer 298 | . . . 258 40 . Siege Activations . | . . . . . . Robots Corrupted . | . . . . . . Combat Hostiles . | . . . . . . Parts Fried . | . . . . . . Impact Corruptions . | . . . . . . Robots Melted . | . . . . . . Combat Hostiles . | . . . . . . Parts Melted . | . . . . . . Heat Transferred . | . . . . . . Parts Sabotaged . | . . . . . . Parts Stolen . | . . . . . . Parts Stripped . | . . . . . . Power Chain Reactions . | . . . . . . Alert | -11 -10 -10 -9 -9 -9 ------- Run | Yrd Mat Min Mat Min Exi Peak Influence 572 | . 15 34 572 236 . Initial 134 | . . 5 . 134 . Average 148 | . 6 18 295 118 . Maximum Alert Level 2 | . . . 2 1 . Low Security (%) 63 | 100 100 100 24 70 . Level 1 26 | . . . 47 29 . Level 2 9 | . . . 27 . . Level 3 . | . . . . . . Level 4 . | . . . . . . Level 5 . | . . . . . . High Security . | . . . . . . Max Security . | . . . . . . Squads Dispatched 3 | . 1 . 2 . . Investigation . | . . . . . . Extermination . | . . . . . . Reinforcement 3 | . 1 . 2 . . Assault . | . . . . . . Garrison . | . . . . . . Intercept . | . . . . . . Searches Triggered . | . . . . . . Construction Impeded . | . . . . . . Haulers Reinforced . | . . . . . . Active Scanning Responses . | . . . . . . Cargo Convoy Interrupts . | . . . . . . Stealth | -11 -10 -10 -9 -9 -9 --------- Run | Yrd Mat Min Mat Min Exi Distress Signals 3 | . . . 3 . . Communications Jammed . | . . . . . . Distress Signals . | . . . . . . Times Spotted 56 | . . 2 31 16 7 Peak Tracking Total 15 | . 1 2 5 15 8 Tactical Retreats 1 | . . 1 . . . Traps | -11 -10 -10 -9 -9 -9 ------- Run | Yrd Mat Min Mat Min Exi Traps Triggered . | . . . . . . Indirectly . | . . . . . . Trap Hack Attempts . | . . . . . . Triggered . | . . . . . . Disarmed . | . . . . . . Reprogrammed . | . . . . . . Reused 1 | . . . . . 1 Traps Extracted . | . . . . . . Installed 1 | . . . . . 1 Triggered . | . . . . . . Most Traps Carried 2 | . . . . 2 2 Machines | -11 -10 -10 -9 -9 -9 ---------- Run | Yrd Mat Min Mat Min Exi Machines Disabled 5 | . . . 1 . 4 Max in Single Turn 2 | . . . . . 2 Machines Repaired . | . . . . . . Machines Dismantled . | . . . . . . Machines Sabotaged . | . . . . . . Overloaded Fab Kills . | . . . . . . Hacking | -11 -10 -10 -9 -9 -9 --------- Run | Yrd Mat Min Mat Min Exi Machines Accessed 9 | . 2 . 6 . 1 Terminals 7 | . 2 . 5 . . Fabricators . | . . . . . . Repair Stations 1 | . . . 1 . . Recycling Units . | . . . . . . Scanalyzers . | . . . . . . Garrison Access . | . . . . . . Total Hacks 22 | . 7 . 14 . 1 Successful 12 | . 3 . 8 . 1 Failed 10 | . 4 . 6 . . Catastrophic 2 | . 1 . 1 . . Database Lockouts . | . . . . . . Manual 9 | . 1 . 7 . 1 Terminals 18 | . 7 . 11 . . Fabricators . | . . . . . . Repair Stations 3 | . . . 3 . . Recycling Units . | . . . . . . Scanalyzers . | . . . . . . Garrison Access . | . . . . . . Terminal Hacks 8 | . 3 . 4 . 1 Prototype ID Bank 2 | . 1 . 1 . . Terminal Index 1 | . . . 1 . . Unreport Threat 1 | . . . 1 . . Recall Reinforcements 1 | . 1 . . . . Hauler Manifests 1 | . 1 . . . . Zone Layout 1 | . . . 1 . . Derelict Proto ID Bank 1 | . . . . . 1 Fabricator Hacks . | . . . . . . Repair Station Hacks 2 | . . . 2 . . Scan Component 1 | . . . 1 . . Repair 1 | . . . 1 . . Recycling Unit Hacks . | . . . . . . Scanalyzer . | . . . . . . Garrison Access Hacks . | . . . . . . Unauthorized Hacks 2 | . . . 2 . . Terminals 2 | . . . 2 . . Botnet 1 | . . . 1 . . Disrupt 1 | . . . 1 . . Fabricators . | . . . . . . Repair Stations . | . . . . . . Recycling Units . | . . . . . . Scanalyzers . | . . . . . . Garrison Access . | . . . . . . Data Cores Recovered . | . . . . . . Used . | . . . . . . Hacking Detections 7 | . 2 . 5 . . Full Trace Events . | . . . . . . Feedback Events . | . . . . . . Feedback Blocked . | . . . . . . Robot Schematics Acquired . | . . . . . . Robots Built . | . . . . . . Authchips . | . . . . . . Time . | . . . . . . Total Robot Build Rating . | . . . . . . Part Schematics Acquired . | . . . . . . Parts Built . | . . . . . . Authchips . | . . . . . . Time . | . . . . . . Total Part Build Rating . | . . . . . . Parts Repaired 1 | . . . 1 . . Time 26 | . . . 26 . . Parts Recycled . | . . . . . . Recycled Matter . | . . . . . . Retrieved Matter . | . . . . . . Retrieved Components . | . . . . . . Parts Scanalyzed . | . . . . . . Part Schematics Acquired . | . . . . . . Parts Damaged . | . . . . . . Bothacking | -11 -10 -10 -9 -9 -9 ------------ Run | Yrd Mat Min Mat Min Exi Used RIF Installer . | . . . . . . Robots Hacked . | . . . . . . Non-combat . | . . . . . . Combat . | . . . . . . Robot Hacks Applied . | . . . . . . Relay Couplers Released . | . . . . . . Fabnet Peak Effective % . | . . . . . . Robots Rewired . | . . . . . . Allies Hacked . | . . . . . . Hacks Repelled . | . . . . . . Allies | -11 -10 -10 -9 -9 -9 -------- Run | Yrd Mat Min Mat Min Exi Total Allies 4 | . . 4 . . . Largest Group 3 | . . 3 2 . . Highest-Rated Group 47 | . . 47 47 . . Highest-Rated Ally 31 | . . 31 31 . . Total Orders . | . . . . . . Ally Attacks 59 | . . 14 45 . . Total Damage 658 | . . 169 489 . . Kills 11 | . . 2 9 . . Allies Corrupted . | . . . . . . Allies Melted . | . . . . . . Intel | -11 -10 -10 -9 -9 -9 ------- Run | Yrd Mat Min Mat Min Exi Robot Analysis Total . | . . . . . . Derelict Logs Recovered 2 | . . 1 . 1 . Drone Launches . | . . . . . . Drone Recoveries . | . . . . . . Exploration | -11 -10 -10 -9 -9 -9 ------------- Run | Yrd Mat Min Mat Min Exi Turns Passed 3845 | 90 332 480 1042 1011 890 Spaces Moved 1716 | 51 205 271 411 404 374 Core 3 | 2 . . . . 1 Treads 1661 | 49 205 271 411 404 321 Legs . | . . . . . . Wheels 52 | . . . . . 52 Hover . | . . . . . . Flight . | . . . . . . Fastest Speed 50 | 50 160 160 160 240 50 Average Speed 204 | 155 160 160 212 240 221 Slowest Speed 240 | 160 160 160 240 240 240 Overloaded Moves . | . . . . . . Propulsion Burnouts . | . . . . . . Robots Hopped . | . . . . . . Cave-ins Triggered . | . . . . . . Exploration Rate (%) 50 | 4 42 65 51 90 48 Regions Visited 5 Branch Regions 3 Pre-discovered Areas 1 | . . . . 1 . Known Exits Taken . | . . . . . . Unknown Exits Taken 5 | 1 1 1 1 1 . Scrap Searched . | . . . . . . Spaces Dug 44 | . . . 35 9 . Terrain Destroyed 188 | . . . 73 91 24 Melee . | . . . . . . Projectile . | . . . . . . AOE 188 | . . . 73 91 24 Terrain Rammed . | . . . . . . Walls Destroyed . | . . . . . . Machines Disabled . | . . . . . . Actions | -11 -10 -10 -9 -9 -9 --------- Run | Yrd Mat Min Mat Min Exi Total 1963 | 59 209 318 526 429 422 Wait 110 | . . 43 48 5 14 Move 1711 | 50 204 270 410 403 374 Hop . | . . . . . . Pick Up 31 | 3 2 2 11 2 11 Fast Attach 22 | 6 2 1 9 1 3 Attach 4 | . . . 1 . 3 Detach 5 | . 1 1 3 . . Swap 10 | . . . 7 2 1 Drop 17 | . . 1 7 2 7 Fire 52 | . . . 30 14 8 Melee . | . . . . . . Ram . | . . . . . . Kick . | . . . . . . Crush . | . . . . . . Escape Stasis . | . . . . . . Rewire . | . . . . . . Trap 1 | . . . . . 1 Miscellaneous . | . . . . . . Route ------- -11/Scrapyard -10/Materials (discovered 2 exits: *Mat / [*Min]) -10/Mines (discovered 2 exits: *Mat x2) -9/Materials (discovered 3 exits: [*Mat x2] / [*Min]) -9/Mines (discovered 4 exits: [*Mat x2] / *Exi / [*Zio]) -9/Exiles History --------- Turn | Location | Event 2 | -11/Scrapyard | Met Revision 17 7 | -11/Scrapyard | Discovered new exit (range 15) 91 | -11/Scrapyard | Entered Materials 302 | -10/Materials | Build established: Mutant 333 | -10/Materials | Discovered new exit (range 4) 374 | -10/Materials | Discovered new exit (range 14) 423 | -10/Materials | Entered Mines 430 | -10/Mines | Received a Rocket Launcher from a helpful Derelict 446 | -10/Mines | Learned Materials stockpile data 501 | -10/Mines | Assisted by bots powering up and referring to "LRC-V3" 551 | -10/Mines | Discovered new exit (range 5) 648 | -10/Mines | A weapon hastily lodged in a ceiling crevice suddenly fell to the ground 828 | -10/Mines | Received a Mining Laser from a helpful Derelict 892 | -10/Mines | Discovered new exit (range 7) 903 | -10/Mines | Entered Materials 903 | -9/Materials | Accompanied by 2 allies 903 | -9/Materials | Evolved 2 slots: Utility x1, Weapon x1 1199 | -9/Materials | Repaired Assault Rifle 1207 | -9/Materials | Discovered new exit (range 9) 1347 | -9/Materials | Destroyed 7 combat bots 1495 | -9/Materials | Build established: Gunner 1554 | -9/Materials | Discovered new exit (range 16) 1736 | -9/Materials | Discovered new exit (range 12) 1945 | -9/Materials | Entered Mines 2111 | -9/Mines | A Derelict revealed a hidden shortcut to a safe place 2192 | -9/Mines | Learned location of Storage (-9) 2305 | -9/Mines | Found a hidden stash of uninstalled traps 2512 | -9/Mines | Assembled infested the area 2540 | -9/Mines | Discovered new exit (range 15) 2542 | -9/Mines | Met 8R-AWN 2548 | -9/Mines | Destroyed 15 combat bots 2576 | -9/Mines | Discovered new exit (range 8) 2944 | -9/Mines | Discovered new exit (range 5) 2956 | -9/Mines | Entered Exiles 3014 | -9/Exiles | Welcomed by 8R-AWN 3055 | -9/Exiles | Met EX-HEX 3120 | -9/Exiles | Met EX-BIN 3153 | -9/Exiles | Aligned with FarCom system 3156 | -9/Exiles | Given EX-Vault access code 3211 | -9/Exiles | Opened EX-Vault 3228 | -9/Exiles | Found Superbattery 3282 | -9/Exiles | Warned to stay clear of 0b10 Research branches 3383 | -9/Exiles | Learned about 8R-AWN's background 3504 | -9/Exiles | Warned about trapping Exiles lab 3674 | -9/Exiles | Attacked by the Exiles 3684 | -9/Exiles | Core integrity fell below 50% 3746 | -9/Exiles | Lost 5 parts (1p1n3w) 3769 | -9/Exiles | Core integrity fell below 20% 3846 | -9/Exiles | Destroyed by Light Fission Core chain reaction Last Messages --------------- 03797_ HV Slug penetrates Wall. 03797_ HV Slug penetrates Machine. 03801_ Penetrated by HV Slug. 03801_ Critical hit (Destroy). 03801_ Lgt. Treads destroyed. 03805_ HV Slug penetrates Assembled Analyzer. 03805_ Penetrated by HV Slug. 03807_ Acquired 2 matter. 03831_ Penetrated by HV Slug. 03831_ Targeting Computer destroyed. 03831_ HV Slug penetrates Wall. 03831_ Machine disabled. 03831_ HV Slug penetrates Wall. 03831_ Dropped Hcp. Storage Unit. 03833_ Dropped Lrg. Matter Pod. 03834_ Acquired Mak. Axe. 03845_ Penetrated by HV Slug. 03845_ Critical hit (Destroy). 03845_ Lgt. Treads destroyed. 03846_ Rigged Lgt. Fission Core explodes. Map ----- +----------------------------------------------------+ | ?????????????????????????????????????????????????? | | ?????????????????????????????????????????????????? | | ?????????????????????????????????????????????????? | | ?????????????????????????????????????????????????? | | ?????????????????????????????????????????????????? | | ?????????????????????????????????????????????????? | | ?????????????????????????????????????????????????? | | ?????????????????????????????????????????????????? | | ?????????????????????????????????????????????????? | | ?????????????????????????????????????????????????? | | ?????????????????????????????????????????????????? | | #????????????????????????????????????????????????? | | ##???????????????????????????????????????????????? | | "##?????????????????????????????????# ?????????? | | #????????????????????????????????# ##???????? | | ""#???????????????????????????????# #???????? | | %"#???????????#####???????????????# ????????? | | "##?????????##" #??????????????## ????????? | | ###???????#" #?????????????## #?????????? | | "###????##" ##????????????# #?????????? | | " #??### ###????????### #??????????? | | "##??# ########## #??????????? | | ##### !!! # """## #???????????? | | "## *g!* * ##??????????? | | ## ! #??????????? | | ! #### @ ##?????????? | | = "#?#"""""#### ###???????? | | [ #"""##?#######??#### * ###?????? | | | ######??????????????##### ##????? | | ##???????????????????????### #????? | | ##??????????????????????????### #????? | | #????????????????????????????### #????? | | ##?????????????????????????????#" ##???? | | #??????????????????????????????#### ###?? | | # # #?????????????????????????????????# ##? | | # ###?????????????????????????????????## ## | | # ##????????????????????????????????????### | | ?###???????????????????????????????????????# # | | ???????????????????????????????????????????## ## | | ????????????????????????????????????????????#####? | | ?????????????????????????????????????????????????? | | ?????????????????????????????????????????????????? | | ?????????????????????????????????????????????????? | | ?????????????????????????????????????????????????? | | ?????????????????????????????????????????????????? | | ?????????????????????????????????????????????????? | | ?????????????????????????????????????????????????? | | ?????????????????????????????????????????????????? | | ?????????????????????????????????????????????????? | | ?????????????????????????????????????????????????? | +----------------------------------------------------+ Best States ------------- Heat Dissipation 28 Energy Generation 14 Energy Capacity 1775 Matter Stores 300 Matter Capacity 300 Sight Range 16 Terrain Scan Density 10 Armor Coverage 225 Evasion (%) 40 Targeting Accuracy 10 Recoil Reduction 2 Item Schematics ----------------- None Robot Schematics ------------------ None Fabricated ------------ Nothing Alien Tech Used ----------------- None Achievements -------------- None Challenges ------------ None Game ------ Seed LauncherFlightNanovents Manual? 0 Play Time 00:22:28 Cumulative 103.5 hours Start 2024.06.07 @ 16:01:47 End 2024.06.07 @ 16:23:28 Sessions 1 Manual Loads 0 Difficulty Rogue Special Mode None Game No. 91 Rogue 91 Adventurer 0 Explorer 0 Win Type - Total 4 Types 2/0/1/1/0/0/0/0/0 Lore% 66 Gallery% 72 Achievement% 56 Wizard Run 0 Options --------- Layout 0 ASCII 0 Keyboard 0 Movement Mouse Keybinds 0 Fullscreen 1 Font 18/Terminus Map View 76x50 Zoom Use 0% Tactical HUD 1 Map Filters NONE Filters NONE Steam 1 RUN: 18d36bb4-a250-4058-8b7a-4a6dc98bf0e0